Cogmind - Beta 15 @@@ ROGUE MODE // 2025.08.02 @ 18:01:26 Player: Temerity Result: Self-destructed Performance ------------- Evolutions (2) 1000 Regions Visited (4) 800 Robots Destroyed (36) 180 Value Destroyed (517) 517 Prototype IDs (0) 0 Alien Tech Used (0) 0 Bonus (0) 0 TOTAL SCORE: 2497 Bonus ------- None Cogmind --------- Core Integrity 480/550 Matter 19/300 Energy 240/240 System Corruption 0% Temperature Warning (356) Movement Flying (114) Ox1 Location -8/Materials Parts ------- > --- POWER (2) -------- Nuclear Core > --- PROPULSION (5) --- Flight Unit Flight Unit Flight Unit > --- UTILITY (2) ------ Targeting Computer > --- WEAPON (2) ------- Particle Cannon Assault Cannon > --- INVENTORY (5) ---- Nuclear Core Improved Sensor Array Improved Signal Interpreter Targeting Computer Particle Charger Peak State ------------ > --- POWER ------------ Nuclear Core Nuclear Core > --- PROPULSION ------- Flight Unit Flight Unit Flight Unit Flight Unit Flight Unit > --- UTILITY ---------- Targeting Computer Targeting Computer > --- WEAPON ----------- Assault Cannon Assault Cannon > --- INVENTORY -------- Small Storage Unit Improved Signal Interpreter Targeting Computer Particle Charger Particle Charger [Rating: 20] Favorites ----------- Power Ion Engine Engine Ion Engine Power Core Nuclear Core Propulsion Flight Unit Leg Aluminum Leg Flight Unit Flight Unit Utility Targeting Computer Device Improved Terrain Scanner Storage Small Storage Unit Processor Targeting Computer Weapon Light Cannon Energy Gun Medium Laser Energy Cannon Beam Cannon Ballistic Gun Light Assault Rifle Ballistic Cannon Light Cannon Special Melee Weapon Datajack Build | -11 -10 -10 -9 -8 ------- Run | Yrd Mat Min Mat Mat Slots Evolved 4 | . . . 2 2 Power 1 | . . . 1 . Propulsion 3 | . . . 1 2 Utility . | . . . . . Weapon . | . . . . . Parts Attached 31 | 8 6 4 5 8 Power 5 | 1 1 . 1 2 Engine 3 | 1 1 . 1 . Core 2 | . . . . 2 Reactor . | . . . . . Propulsion 8 | 2 1 2 1 2 Treads . | . . . . . Leg 3 | 2 1 . . . Wheel . | . . . . . Hover . | . . . . . Flight 5 | . . 2 1 2 Utility 6 | 3 . 1 2 . Device 3 | 2 . 1 . . Storage 1 | 1 . . . . Processor 2 | . . . 2 . Hackware . | . . . . . Protection . | . . . . . Artifact . | . . . . . Weapon 12 | 2 4 1 1 4 Energy Gun 2 | 1 . . . 1 Energy Cannon 3 | . 1 . . 2 Ballistic Gun 2 | 1 . 1 . . Ballistic Cannon 4 | . 2 . 1 1 Launcher . | . . . . . Special Weapon . | . . . . . Impact Weapon . | . . . . . Slashing Weapon . | . . . . . Piercing Weapon . | . . . . . Special Melee Weapon 1 | . 1 . . . Unidentified Prototypes . | . . . . . Parts Lost 7 | . 2 1 . 4 Power 2 | . 1 . . 1 Propulsion 3 | . . 1 . 2 Utility 2 | . 1 . . 1 Weapon . | . . . . . Highest Loss Streak 2 | . 2 1 . 2 To Critical Strikes . | . . . . . Average Backups 4 | 1 5 5 4 4 Power . | 1 . . . . Propulsion . | . . . . . Utility 2 | . 2 1 1 3 Weapon 1 | . 1 2 1 . Tool/Special . | . . . . . Unused Backups 13 | . 2 . 3 8 Power 2 | . 1 . . 1 Propulsion . | . . . . . Utility 8 | . 1 . 1 6 Weapon 3 | . . . 2 1 Tool/Special . | . . . . . Average Slot Usage (%) 89 | . 96 77 82 88 Engine 11 | . 14 14 12 5 Core 1 | . . . . 7 Leg 13 | . 28 7 . . Flight 17 | . . 16 33 41 Device 11 | . 14 16 12 . Storage 5 | . 10 5 . . Processor 5 | . . . 9 17 Energy Cannon 5 | . 11 . . 5 Ballistic Gun 3 | . 3 5 5 . Ballistic Cannon 9 | . 10 3 9 10 Special Melee Weapon 1 | . . 8 . . Peak Build Rating 20 | 9 9 6 11 20 Average Rating 8 | 5 8 5 8 15 On Entrance 6 | . 9 6 6 9 Naked Turns . | . . . . . Heaviest Build 20 | 14 17 14 13 20 Greatest Support 20 | 20 20 10 12 20 Greatest Overweight (x) 3 | . 1 3 1 1 Average Overweight (x) . | . . . . . Largest Inventory Capacity 8 | 8 8 8 5 5 Average Capacity 6 | 6 7 6 5 5 Most Carried 7 | 5 7 7 5 5 Average Carried 4 | 1 6 5 4 4 Final Capacity 8 | 5 8 5 5 5 Final Carried 5 | 3 5 5 5 5 Class Distribution -------------------- 62% | Mutant 18% | Scavenger-Mutant 18% | Scavenger-Sprinter Dominant Class ---------------- Mutant | -10/Materials Scavenger-Mutant | -10/Mines Mutant | -9/Materials Scavenger-Sprinter | -8/Materials Resources | -11 -10 -10 -9 -8 ----------- Run | Yrd Mat Min Mat Mat Matter Collected 651 | 242 225 84 73 27 Remotely . | . . . . . Salvage Created 778 | 116 301 75 90 196 Parts 66 | 6 28 10 12 10 Haulers Intercepted 1 | . . . 1 . Recyclers Shooed 1 | . . . . 1 Parts Field Recycled . | . . . . . Retrieved Matter . | . . . . . Parts Self-Destructed . | . . . . . Prevented . | . . . . . Kills | -11 -10 -10 -9 -8 ------- Run | Yrd Mat Min Mat Mat Combat Hostiles Destroyed 23 | . 10 6 4 3 Guns 3 | . . 3 . . Cannons 20 | . 10 3 4 3 Classes Destroyed 10 | 2 4 . 1 3 Worker 2 | . . . . 2 Builder 3 | . 2 . 1 . Tunneler 2 | 2 . . . . Hauler 1 | . . . 1 . Recycler 2 | 1 . . . 1 Operator 1 | . . . . 1 Watcher 2 | . 2 . . . Swarmer 18 | . 6 6 4 2 Grunt 4 | . 4 . . . Sentry 1 | . . . . 1 Best Kill Streak 6 | 2 6 4 6 4 Combat Bots Only 6 | . 6 3 4 2 Max Kills in Single Turn 2 | 1 2 1 1 2 Gunslinging . | . . . . . Exploded . | . . . . . Melee . | . . . . . Uniques/NPCs Destroyed . | . . . . . Combat | -11 -10 -10 -9 -8 -------- Run | Yrd Mat Min Mat Mat Hostile Shots Fired 167 | . 63 32 32 40 Missed 55 | . 21 8 17 9 Hits 112 | . 42 24 15 31 Projectile 112 | . 42 24 15 31 Damage Taken 1065 | . 430 192 144 299 Core 261 | . 70 82 39 70 Absorbed by Shields . | . . . . . Core Remaining (%) 76 | 100 . 39 90 . Volleys Fired 105 | 17 34 19 17 18 Largest 2 | 2 2 1 2 2 Hottest 105 | 70 90 30 50 105 Shots Fired 174 | 34 68 19 18 35 Gun 47 | 34 2 10 1 . Cannon 127 | . 66 9 17 35 Launcher . | . . . . . Special . | . . . . . Kinetic 106 | 17 34 19 18 18 Thermal 68 | 17 34 . . 17 Explosive . | . . . . . Electromagnetic . | . . . . . Robot Hit Streak 8 | 6 8 3 4 7 Robot Miss Streak 5 | 4 5 2 2 3 Penetration Max . | . . . . . Secondary Targets . | . . . . . Shots Hit Robots 89 | 19 32 11 11 16 Core Hits 42 | 5 15 8 6 8 Critical Kills . | . . . . . Critical Parts Destroyed . | . . . . . Critical Strikes 2 | 1 1 . . . Burn 1 | 1 . . . . Blast 1 | . 1 . . . Melee Attacks . | . . . . . Impact . | . . . . . Slashing . | . . . . . Piercing . | . . . . . Sneak Attacks . | . . . . . Combat Hostiles . | . . . . . Follow-up Attacks . | . . . . . Damage Inflicted 1518 | 195 513 135 243 432 Guns 248 | 195 8 45 . . Cannons 1270 | . 505 90 243 432 Explosions . | . . . . . Melee . | . . . . . Ramming . | . . . . . Kinetic 924 | 70 232 135 243 244 Thermal 594 | 125 281 . . 188 Explosive . | . . . . . Electromagnetic . | . . . . . Impact . | . . . . . Slashing . | . . . . . Piercing . | . . . . . Highest Corruption 4 | . . . 4 . Average Corruption 3 | . . . 3 . Corruption Purged . | . . . . . Corruption Blocked . | . . . . . Effects 1 | . . . 1 . Matter Fused 1 | . . . 1 . Overload Shots . | . . . . . Overflow Damage 39 | . 20 . 8 11 Projectiles 39 | . 20 . 8 11 Explosions . | . . . . . Melee . | . . . . . Knockbacks 6 | . 1 1 1 3 Impact . | . . . . . Kinetic 6 | . 1 1 1 3 Secondary . | . . . . . Self-Inflicted Damage . | . . . . . Shots . | . . . . . Rammed 1 | . . . . 1 Targets Rammed 1 | . . . . 1 Kicked . | . . . . . Crushed . | . . . . . Highest Temperature 512 | 170 487 4 10 512 Average Temperature 175 | 72 169 2 3 273 Received Heat Transfer 213 | . 150 . 27 36 Effects 17 | . 3 . . 14 Shutdowns 4 | . 1 . . 3 Interference 3 | . . . . 3 Matter Decay 2 | . . . . 2 Short Circuit 2 | . 1 . . 1 Damage (minor) 2 | . 1 . . 1 Damage (major) 4 | . . . . 4 Siege Activations . | . . . . . Martial Activations . | . . . . . Shielding Activations . | . . . . . Robots Disrupted . | . . . . . Combat Hostiles . | . . . . . Robots Corrupted . | . . . . . Combat Hostiles . | . . . . . Parts Fried . | . . . . . Impact Corruptions . | . . . . . Robots Melted . | . . . . . Combat Hostiles . | . . . . . Parts Melted . | . . . . . Heat Transferred 1369 | 444 592 . . 333 Parts Sabotaged . | . . . . . Parts Stolen . | . . . . . Parts Stripped . | . . . . . Power Chain Reactions . | . . . . . Alert | -11 -10 -10 -9 -8 ------- Run | Yrd Mat Min Mat Mat Maximum Alert Level . | . . . . . Low Security (%) 100 | 100 100 100 100 100 Level 1 . | . . . . . Level 2 . | . . . . . Level 3 . | . . . . . Level 4 . | . . . . . Level 5 . | . . . . . High Security . | . . . . . Max Security . | . . . . . Peak Influence 194 | 10 194 156 192 168 Initial 80 | . . 66 56 80 Average 83 | 1 82 119 100 96 Influence Increases 866 | 15 307 140 226 178 Destroy 0b10 Robot/C 460 | . 200 120 80 60 Destroy 0b10 Robot/NC 65 | 15 20 . 10 20 Destroy Leader 86 | . 34 20 12 20 Successful Hack 5 | . 5 . . . Disable Machine 75 | . 15 . 30 30 Destroy Structure 10 | . 3 . 4 3 Partial Spotted 30 | . . . 30 . Lose Combat Pursuer 135 | . 30 . 60 45 Influence Decreases 718 | 15 136 165 180 222 Entered New Map 307 | . . 105 90 112 Time Decay 341 | 15 116 50 90 70 Lost Part 70 | . 20 10 . 40 Squads Dispatched 3 | . . . 2 1 Investigation 1 | . . . 1 . Extermination . | . . . . . Reinforcement 2 | . . . 1 1 Assault . | . . . . . Garrison . | . . . . . Intercept . | . . . . . Searches Triggered . | . . . . . Construction Impeded . | . . . . . Haulers Reinforced . | . . . . . Active Scanning Responses . | . . . . . Cargo Convoy Interrupts . | . . . . . Stealth | -11 -10 -10 -9 -8 --------- Run | Yrd Mat Min Mat Mat Distress Signals 3 | . 2 . 1 . Communications Jammed . | . . . . . Distress Signals . | . . . . . Times Spotted 48 | . 18 8 12 10 Peak Tracking Total 7 | . 7 3 6 6 Tactical Retreats 4 | . 1 . 2 1 Traps | -11 -10 -10 -9 -8 ------- Run | Yrd Mat Min Mat Mat Traps Triggered 3 | . . . 3 . Indirectly . | . . . . . Trap Hack Attempts . | . . . . . Triggered . | . . . . . Disarmed . | . . . . . Reprogrammed . | . . . . . Reused . | . . . . . Traps Extracted . | . . . . . Installed . | . . . . . Triggered . | . . . . . Machines | -11 -10 -10 -9 -8 ---------- Run | Yrd Mat Min Mat Mat Machines Disabled 5 | . 1 . 2 2 Max in Single Turn 1 | . 1 . 1 1 Machines Repaired . | . . . . . Machines Dismantled . | . . . . . Machines Sabotaged . | . . . . . Overloaded Fab Kills . | . . . . . Hacking | -11 -10 -10 -9 -8 --------- Run | Yrd Mat Min Mat Mat Machines Accessed 6 | . 2 . 3 1 Terminals 5 | . 2 . 2 1 Fabricators . | . . . . . Repair Stations . | . . . . . Recycling Units 1 | . . . 1 . Scanalyzers . | . . . . . Garrison Access . | . . . . . Total Hacks 11 | . 4 . 5 2 Successful 5 | . 1 . 2 2 Failed 6 | . 3 . 3 . Catastrophic 1 | . . . 1 . Database Lockouts . | . . . . . Manual . | . . . . . Terminals 10 | . 4 . 4 2 Fabricators . | . . . . . Repair Stations . | . . . . . Recycling Units 1 | . . . 1 . Scanalyzers . | . . . . . Garrison Access . | . . . . . Terminal Hacks 4 | . 1 . 1 2 Emergency Access Points 1 | . . . 1 . Alert Level 1 | . . . . 1 Security Status 1 | . . . . 1 Hauler Manifests 1 | . 1 . . . Fabricator Hacks . | . . . . . Repair Station Hacks . | . . . . . Recycling Unit Hacks 1 | . . . 1 . Report Inventory 1 | . . . 1 . Scanalyzer . | . . . . . Garrison Access Hacks . | . . . . . Unauthorized Hacks . | . . . . . Terminals . | . . . . . Fabricators . | . . . . . Repair Stations . | . . . . . Recycling Units . | . . . . . Scanalyzers . | . . . . . Garrison Access . | . . . . . Data Cores Recovered . | . . . . . Used . | . . . . . Hacking Detections 3 | . 1 . 2 . Full Trace Events . | . . . . . Feedback Events . | . . . . . Feedback Blocked . | . . . . . Robot Schematics Acquired . | . . . . . Robots Built . | . . . . . Authchips . | . . . . . Time . | . . . . . Total Robot Build Rating . | . . . . . Part Schematics Acquired . | . . . . . Parts Built . | . . . . . Authchips . | . . . . . Time . | . . . . . Total Part Build Rating . | . . . . . Parts Repaired . | . . . . . Time . | . . . . . Parts Recycled . | . . . . . Recycled Matter . | . . . . . Retrieved Matter . | . . . . . Retrieved Components . | . . . . . Parts Scanalyzed . | . . . . . Part Schematics Acquired . | . . . . . Parts Damaged . | . . . . . Bothacking | -11 -10 -10 -9 -8 ------------ Run | Yrd Mat Min Mat Mat Used RIF Installer . | . . . . . Robots Hacked . | . . . . . Non-combat . | . . . . . Combat . | . . . . . Robot Hacks Applied . | . . . . . Relay Couplers Released . | . . . . . Fabnet Peak Effective % . | . . . . . Robots Rewired . | . . . . . Allies Hacked . | . . . . . Hacks Repelled . | . . . . . Allies | -11 -10 -10 -9 -8 -------- Run | Yrd Mat Min Mat Mat Total Allies . | . . . . . Largest Group . | . . . . . Highest-Rated Group . | . . . . . Highest-Rated Ally . | . . . . . Total Orders . | . . . . . Ally Attacks . | . . . . . Total Damage . | . . . . . Kills . | . . . . . Allies Corrupted . | . . . . . Allies Melted . | . . . . . Intel | -11 -10 -10 -9 -8 ------- Run | Yrd Mat Min Mat Mat Active Infowar (turns) 498 | 24 278 67 129 . Terrain 302 | 24 278 . . . Structural 148 | . . 67 81 . Seismic 299 | 19 88 65 127 . Robot Analysis Total . | . . . . . Derelict Logs Recovered 1 | . . 1 . . Drone Launches . | . . . . . Drone Recoveries . | . . . . . Exploration | -11 -10 -10 -9 -8 ------------- Run | Yrd Mat Min Mat Mat Turns Passed 945 | 114 370 108 197 156 Spaces Moved 946 | 49 187 113 358 239 Core 20 | 14 . 6 . . Treads . | . . . . . Legs 225 | 35 187 3 . . Wheels . | . . . . . Hover . | . . . . . Flight 701 | . . 104 358 239 Fastest Speed 28 | 50 120 37 34 28 Average Speed 59 | 100 134 49 36 30 Slowest Speed 200 | 120 190 200 114 114 Overloaded Moves . | . . . . . Propulsion Burnouts . | . . . . . Robots Hopped 2 | . . . 1 1 Potential Cave-ins . | . . . . . Cave-ins Triggered . | . . . . . Exploration Rate (%) 24 | 5 43 20 37 18 Regions Visited 4 Branch Regions 1 Pre-discovered Areas . | . . . . . Known Exits Taken . | . . . . . Unknown Exits Taken 4 | 1 1 1 1 . Scrap Searched . | . . . . . Spaces Dug . | . . . . . Terrain Destroyed 6 | . . . 3 3 Melee . | . . . . . Projectile 6 | . . . 3 3 AOE . | . . . . . Terrain Rammed . | . . . . . Walls Destroyed . | . . . . . Machines Disabled . | . . . . . Actions | -11 -10 -10 -9 -8 --------- Run | Yrd Mat Min Mat Mat Total 1161 | 83 238 148 406 286 Wait 6 | . . 1 5 . Move 938 | 48 186 112 355 237 Hop 2 | . . . 1 1 Pick Up 39 | 10 6 5 10 8 Fast Attach 10 | . 2 . 1 7 Attach 17 | 7 1 4 3 2 Detach 1 | . . 1 . . Swap 12 | 1 4 2 4 1 Drop 30 | . 5 4 10 11 Fire 105 | 17 34 19 17 18 Melee . | . . . . . Ram 1 | . . . . 1 Kick . | . . . . . Crush . | . . . . . Escape Stasis . | . . . . . Rewire . | . . . . . Trap . | . . . . . Miscellaneous . | . . . . . Route ------- -11/Scrapyard -10/Materials (discovered 2 exits: [*Min x2]) -10/Mines -9/Materials -8/Materials (discovered 1 exit: Sto) History --------- Turn | Location | Event 6 | -11/Scrapyard | Discovered new exit (range 15) 115 | -11/Scrapyard | Entered Materials 300 | -10/Materials | Build established: Mutant 352 | -10/Materials | Discovered new exit (range 16) 381 | -10/Materials | Discovered new exit (range 11) 485 | -10/Materials | Entered Mines 560 | -10/Mines | Core integrity fell below 50% 591 | -10/Mines | Discovered new exit (range 5) 593 | -10/Mines | Entered Materials 593 | -9/Materials | Evolved 2 slots: Power x1, Propulsion x1 782 | -9/Materials | Discovered new exit (range 10) 790 | -9/Materials | Entered another Materials area 790 | -8/Materials | Evolved 2 slots: Propulsion x2 791 | -8/Materials | Identified exit to Storage 946 | -8/Materials | Self-destructed Last Messages --------------- K-01 Serf collects debris. Flight Unit broken. Overheating: Short circuit. Destroyed Lgt. Ion Engine. K-01 Serf collects debris. R-06 Scavenger destroyed. K-01 Serf collects debris. Power failure, Nuclear Core shutdown. Y-45 Defender destroyed. K-01 Serf collects debris. Targeting Computer destroyed. K-01 Serf collects debris. Overheating: Matter decay (-2). Overheating: System interference. Assault Cannon temporarily disabled. Targeting Computer temporarily disabled. Slammed into K-01 Serf. Power failure, Nuclear Core shutdown. Broken Flight Unit destroyed. K-01 Serf collects debris. Map ----- +----------------------------------------------------+ | | | | | | | | | | | | | | | | | | | | | | | | | | | | | | | | | | | | | | | | | ????????????????????????????????????????????????? | | ????????????????????????????????????????????????? | | ??????????#####?????????????????????????????????? | | ###########"T"#############?????????????????????? | | + #?????????????????????? | | ### k @#?????????????????????? | | #?# """ """ "" #?????????????????????? | | #?# """ """ =T" #?????????????????????? | | #?# """ """ " #?????????????????????? | | #?# % = #?????????????????????? | | #?# %t % [#?????????????????????? | | ### ########+#####g#?????????????????????? | | #+###### # = #??##g#?????????????????????? | | ##### # ""#??##r#?????????????????????? | | T + T"#??##[#?????????????????????? | | ##### # ""#???#k#?????????????????????? | | #+###### # #???#%#?????????????????????? | | ## ## !#???#w*?????????????????????? | | ## #########???#= ?????????????????????? | | ## #???????????# ????????????????????? | | ## #???????????# ????????????????????? | | ## #???????????# #???????????????????? | | ## #???????????# #???????????????????? | | + #???????????# #???????????????????? | | ! ###+#######??????? #???????????????????? | | # #??????? "???????????????????? | | ######## """ """ #??????? =#???????????????????? | | ???????# """ """ #??????? [%#???????????????????? | | ???????# """ """ #??????? %%#???????????????????? | | ???????# #??????? "#???????????????????? | +----------------------------------------------------+ Best States ------------- Heat Dissipation 31 Energy Generation 23 Energy Capacity 380 Matter Stores 287 Matter Capacity 300 Sight Range 16 Terrain Scan Range 16 Terrain Scan Density 10 Evasion (%) 64 Targeting Accuracy 10 Item Schematics ----------------- None Robot Schematics ------------------ None Fabricated ------------ Nothing Repaired ---------- Nothing Alien Tech Used ----------------- None Achievements -------------- None Challenges ------------ None Game ------ Seed RocketGravjetFacilitator Manual? 0 Play Time 00:22:27 Cumulative 16.6 hours Start 2025.08.02 @ 17:38:40 End 2025.08.02 @ 18:01:26 Sessions 1 Manual Loads 0 Difficulty Rogue Special Mode None Game No. 19 Rogue 19 Adventurer 0 Explorer 0 Win Type - Total 0 Types 0/0/0/0/0/0/0/0/0/0 Lore% 5 Gallery% 14 Achievement% 12 Wizard Run 0 Options --------- Layout 1 ASCII 0 Keyboard 0 Movement Mouse Keybinds 0 Fullscreen 1 Font 18/SmallcapsGlow Map View 51x43 Zoom Use 0% Tactical HUD 0 Map Filters NONE Filters NONE Steam 1 RUN: f401e463-f88f-47f2-965d-60d0c012634c